[Event "25th Magistral Barcelona 2020"]
[Site "Barcelona"]
[Date "2020.12.03"]
[Round "2.4"]
[White "Lopez Martinez, Josep Manuel"]
[Black "Alonso Rosell, Alvar"]
[Result "0-1"]
[ECO "A81"]
[WhiteElo "2542"]
[BlackElo "2552"]
[Annotator "ChessBase"]
[PlyCount "120"]
[EventDate "2020.12.02"]
[EventType "tourn"]
[EventCountry "ESP"]
[SourceTitle "playchess.com"]
[Source "ChessBase"]
[SourceQuality "1"]
[TimeControl "5400+30"]

1. d4 {[%emt 0:05:27]} f5 {[%emt 0:00:00]} 2. g3 {[%emt 0:01:45]} Nf6 {[%emt 0:00:00]} 3. Bg2 {[%emt 0:00:09]} g6 {[%emt 0:00:00]} 4. Nd2 {[%emt 0:10:17]} Bg7 {[%emt 0:01:57]} 5. e4 {[%emt 0:00:22]} fxe4 {[%emt 0:00:15]} 6. Nxe4 {[%emt 0:00:08]} Nxe4 {[%emt 0:02:52]} 7. Bxe4 {[%emt 0:00:09]} d5 {[%emt 0:00:35]} 8. Bg2 {[%emt 0:00:41]} Nc6 {[%emt 0:00:30]} 9. Ne2 Bg4 {[%emt 0:02:18]} 10. c3 {[%emt 0:05:49]} Qd6 {[%emt 0:09:19]} 11. h3 {[%emt 0:09:50]} Bf5 {[%emt 0:04:24]} 12. Nf4 e5 13. Nxd5 {[%emt 0:13:14]} O-O-O {[%emt 0:15:13]} 14. O-O {[%emt 0:02:46]} Be6 {[%emt 0:01:29]} 15. dxe5 Nxe5 {[%emt 0:00:06]} 16. Ne3 {[%emt 0:06:07]} Qa6 {[%emt 0:01:54]} 17. Qc2 {[%emt 0:01:10]} Kb8 {[%emt 0:07:08]} 18. Rd1 {[%emt 0:02:32]} Rxd1+ {[%emt 0:10:36]} 19. Qxd1 {[%emt 0:01:32]} Qd3 20. a3 {[%emt 0:26:57]} Rd8 {[%emt 0:11:58]} 21. Qxd3 {[%emt 0:00:16]} Nxd3 {[%emt 0:00:02]} 22. Bf1 {[%emt 0:07:48]} Nc5 {[%emt 0:18:20]} 23. h4 {[%emt 0:01:41]} Nb3 {[%emt 0:00:35]} 24. Rb1 {[%emt 0:00:05]} Bh6 {[%emt 0:00:16]} 25. Be2 {[%emt 0:01:17]} Nxc1 {[%emt 0:02:58]} 26. Rxc1 {[%emt 0:00:06]} Rd2 {[%emt 0:00:05]} 27. Bf3 {[%emt 0:02:43]} Bxe3 {[%emt 0:02:26]} 28. fxe3 {[%emt 0:00:02]} Rxb2 {[%emt 0:00:50]} 29. Rf1 {[%emt 0:01:04]} Kc8 30. Be4 {[%emt 0:00:13]} Kd7 {[%emt 0:02:28]} 31. Rf8 {[%emt 0:00:04]} Re2 {[%emt 0:01:33]} 32. Bxb7 {[%emt 0:01:10]} Rxe3 {[%emt 0:00:06]} 33. Kf2 {[%emt 0:00:20]} Rxc3 {[%emt 0:00:08]} 34. Rh8 {[%emt 0:00:19]} h5 {[%emt 0:01:39]} 35. a4 {[%emt 0:00:30]} Rc5 {[%emt 0:01:03]} 36. Ke3 {[%emt 0:00:55]} Kd6 {[%emt 0:00:20]} 37. Be4 {[%emt 0:00:15]} Bf7 {[%emt 0:01:28]} 38. Rh6 {[%emt 0:00:43]} Ke7 {[%emt 0:00:12]} 39. Rh8 {[%emt 0:00:27]} Rc3+ {[%emt 0:00:33]} 40. Kf2 {[%emt 0:00:33]} Rc4 {[%emt 0:00:06]} 41. Ke3 {[%emt 0:00:18]} Rxa4 {[%emt 0:00:11]} 42. Rc8 {[%emt 0:00:03]} Kd6 {[%emt 0:00:44]} 43. Rf8 {[%emt 0:00:07]} Ke7 {[%emt 0:01:44]} 44. Rc8 {[%emt 0:00:01]} Kd7 {[%emt 0:00:09]} 45. Rf8 {[%emt 0:00:05]} Be8 {[%emt 0:00:08]} 46. Rg8 {[%emt 0:01:06]} Ra6 {[%emt 0:01:21]} 47. Kd4 {[%emt 0:00:59]} Bf7 {[%emt 0:00:47]} 48. Rf8 {[%emt 0:00:12]} Be8 {[%emt 0:00:41]} 49. Rg8 {[%emt 0:00:26]} Rd6+ {[%emt 0:00:55]} 50. Kc5 {[%emt 0:00:15]} a5 {[%emt 0:00:16]} 51. Rf8 {[%emt 0:01:47]} a4 {[%emt 0:01:01]} 52. Rf3 {[%emt 0:00:08]} Ke6 {[%emt 0:00:30]} 53. Re3 {[%emt 0:00:11]} Kf6 {[%emt 0:00:21]} 54. Bd5 {[%emt 0:00:36]} Bd7 {[%emt 0:00:29]} 55. Rf3+ {[%emt 0:00:10]} Ke7 {[%emt 0:01:02]} 56. Rf7+ {[%emt 0:00:45]} Ke8 {[%emt 0:00:51]} 57. Rg7 {[%emt 0:00:30]} Rf6 {[%emt 0:00:46]} 58. Rg8+ {[%emt 0:00:18]} Ke7 {[%emt 0:00:01]} 59. Rg7+ {[%emt 0:00:42]} Kd8 {[%emt 0:00:01]} 60. Rg8+ {[%emt 0:00:43]} Be8 {[%emt 0:00:01]} 0-1

[Event "25th Magistral Barcelona 2020"]
[Site "Barcelona"]
[Date "2020.12.03"]
[Round "2.5"]
[White "Batsiashvili, Nino"]
[Black "Peralta, Fernando"]
[Result "1/2-1/2"]
[ECO "A13"]
[WhiteElo "2460"]
[BlackElo "2586"]
[Annotator "ChessBase"]
[PlyCount "123"]
[EventDate "2020.12.02"]
[EventType "tourn"]
[EventCountry "ESP"]
[SourceTitle "playchess.com"]
[Source "ChessBase"]
[SourceQuality "1"]
[TimeControl "5400+30"]

1. c4 {[%emt 0:00:00]} e6 {[%emt 0:00:01]} 2. Nc3 {[%emt 0:00:00]} Bb4 {[%emt 0:00:52]} 3. e4 {[%emt 0:00:00]} Ne7 {[%emt 0:02:41]} 4. d4 {[%emt 0:00:18]} c5 {[%emt 0:07:11]} 5. dxc5 {[%emt 0:04:32]} Bxc3+ {[%emt 0:05:15]} 6. bxc3 {[%emt 0:00:02]} Na6 {[%emt 0:01:51]} 7. Nf3 {[%emt 0:04:36]} O-O {[%emt 0:15:39]} 8. Be3 {[%emt 0:02:53]} Qa5 {[%emt 0:00:27]} 9. Rc1 {[%emt 0:00:45]} b6 {[%emt 0:08:57]} 10. cxb6 {[%emt 0:10:35]} axb6 {[%emt 0:00:07]} 11. Qd6 {[%emt 0:04:02]} Nc6 {[%emt 0:02:07]} 12. Bd3 {[%emt 0:00:18]} Nc5 {[%emt 0:02:54]} 13. Bb1 {[%emt 0:01:43]} Ba6 {[%emt 0:03:24]} 14. Nd2 {[%emt 0:03:51]} Na4 {[%emt 0:04:18]} 15. O-O {[%emt 0:17:07]} Nxc3 {[%emt 0:03:40]} 16. Bd3 {[%emt 0:08:21]} Na4 {[%emt 0:05:21]} 17. Qg3 {[%emt 0:11:02]} Qh5 {[%emt 0:02:38]} 18. f4 {[%emt 0:01:14]} Nc5 {[%emt 0:05:27]} 19. Bb1 {[%emt 0:00:02]} f6 {[%emt 0:06:04]} 20. Nb3 {[%emt 0:01:29]} d6 {[%emt 0:02:25]} 21. Qe1 {[%emt 0:12:39]} Rfd8 {[%emt 0:04:27]} 22. Rf3 {[%emt 0:00:19]} e5 {[%emt 0:04:14]} 23. Rh3 {[%emt 0:00:02]} Qf7 {[%emt 0:00:29]} 24. f5 {[%emt 0:02:20]} Nd7 {[%emt 0:04:27]} 25. Qh4 {[%emt 0:00:32]} Nf8 {[%emt 0:00:04]} 26. Bxb6 {[%emt 0:01:02]} Rdb8 {[%emt 0:00:09]} 27. Bf2 {[%emt 0:03:38]} Bxc4 {[%emt 0:00:59]} 28. Rhc3 {[%emt 0:00:06]} Bxb3 {[%emt 0:01:52]} 29. axb3 {[%emt 0:01:08]} Rxb3 {[%emt 0:01:18]} 30. Qg3 {[%emt 0:02:04]} Rxc3 {[%emt 0:03:00]} 31. Qxc3 {[%emt 0:00:02]} Ne7 {[%emt 0:00:08]} 32. Bc2 {[%emt 0:00:52]} Kh8 {[%emt 0:00:28]} 33. Bb3 {[%emt 0:01:02]} Qe8 {[%emt 0:00:41]} 34. Rd1 {[%emt 0:00:27]} d5 {[%emt 0:00:48]} 35. exd5 {[%emt 0:01:35]} Nxf5 {[%emt 0:00:06]} 36. d6 {[%emt 0:00:07]} Rd8 {[%emt 0:01:53]} 37. Qc4 {[%emt 0:00:16]} Nd7 {[%emt 0:00:08]} 38. Ba4 {[%emt 0:02:02]} e4 {[%emt 0:01:17]} 39. Qd5 {[%emt 0:00:36]} g6 {[%emt 0:00:54]} 40. g4 {[%emt 0:01:59]} Ng7 {[%emt 0:00:44]} 41. Bd4 {[%emt 0:00:29]} Qe6 {[%emt 0:00:20]} 42. Qxe6 {[%emt 0:01:27]} Nxe6 {[%emt 0:00:01]} 43. Bc3 {[%emt 0:01:37]} Nec5 {[%emt 0:00:13]} 44. Bxd7 {[%emt 0:00:36]} Nxd7 {[%emt 0:00:30]} 45. g5 {[%emt 0:00:02]} Kg8 {[%emt 0:00:53]} 46. gxf6 {[%emt 0:01:03]} Kf7 {[%emt 0:00:28]} 47. Kf2 {[%emt 0:00:28]} Nxf6 {[%emt 0:00:53]} 48. Ke3 {[%emt 0:00:37]} Ke6 {[%emt 0:00:36]} 49. Bxf6 {[%emt 0:00:42]} Kxf6 {[%emt 0:00:03]} 50. Kxe4 {[%emt 0:00:08]} Ke6 {[%emt 0:00:04]} 51. Kf4 {[%emt 0:00:33]} h6 {[%emt 0:01:02]} 52. Rd3 {[%emt 0:01:59]} Rxd6 {[%emt 0:00:18]} 53. Rh3 {[%emt 0:00:07]} g5+ {[%emt 0:01:06]} 54. Kg4 {[%emt 0:00:05]} Kf7 {[%emt 0:00:25]} 55. Kh5 {[%emt 0:00:19]} Kg7 {[%emt 0:00:30]} 56. Ra3 {[%emt 0:00:24]} Rd2 {[%emt 0:00:33]} 57. Ra7+ {[%emt 0:00:11]} Kf6 {[%emt 0:00:05]} 58. Ra6+ {[%emt 0:00:28]} Kf5 {[%emt 0:00:17]} 59. Ra5+ {[%emt 0:00:05]} Kf4 {[%emt 0:00:15]} 60. Ra4+ {[%emt 0:00:06]} Kf3 {[%emt 0:00:43]} 61. Kxh6 {[%emt 0:00:24]} Rxh2+ {[%emt 0:00:56]} 62. Kxg5 {[%emt 0:00:03]} 1/2-1/2

[Event "25th Magistral Barcelona 2020"]
[Site "Barcelona"]
[Date "2020.12.06"]
[Round "5.1"]
[White "Alonso Rosell, Alvar"]
[Black "Munoz, Miguel"]
[Result "1/2-1/2"]
[ECO "A05"]
[WhiteElo "2552"]
[BlackElo "2442"]
[Annotator "RC"]
[PlyCount "60"]
[EventDate "2020.12.02"]
[EventType "tourn"]
[EventCountry "ESP"]
[SourceTitle "playchess.com"]
[Source "ChessBase"]
[SourceQuality "1"]
[TimeControl "5400+30"]

1. Nf3 Nf6 2. g3 g6 3. b3 Bg7 4. Bb2 O-O 5. Bg2 c5 6. c4 Nc6 7. O-O d6 8. d4 cxd4 9. Nxd4 Bd7 10. e3 Nxd4 11. exd4 d5 12. c5 Ne4 13. Nc3 Bc6 14. Re1 Nxc3 15. Bxc3 a5 16. a3 e6 17. b4 axb4 18. axb4 Qd7 19. Ra5 Rxa5 20. bxa5 Ra8 21. Qd2 h5 22. h4 Qc7 23. Bf1 Re8 24. Qb2 Qd7 25. Bg2 Bf6 26. Qd2 Qc7 27. Qb2 Qd7 28. Qd2 Qc7 29. Qb2 Qd7 30. Qd2 Qc7 1/2-1/2

[Event "25th Magistral Barcelona 2020"]
[Site "Barcelona"]
[Date "2020.12.06"]
[Round "5.3"]
[White "Milliet, Sophie"]
[Black "Batsiashvili, Nino"]
[Result "0-1"]
[ECO "B15"]
[WhiteElo "2401"]
[BlackElo "2460"]
[Annotator "RC"]
[PlyCount "65"]
[EventDate "2020.12.02"]
[EventType "tourn"]
[EventCountry "ESP"]
[SourceTitle "playchess.com"]
[Source "ChessBase"]
[SourceQuality "1"]
[TimeControl "5400+30"]

1. e4 {[%emt 0:00:00]} c6 {[%emt 0:00:00]} 2. d4 {[%emt 0:00:00]} d5 {[%emt 0:00:00]} 3. Nc3 {[%emt 0:00:00]} dxe4 {[%emt 0:00:00]} 4. Nxe4 {[%emt 0:00:00]} Nf6 {[%emt 0:00:00]} 5. Nxf6+ exf6 {[%emt 0:00:00]} 6. c3 {[%emt 0:00:15]} Bd6 {[%emt 0:00:00]} 7. Bd3 {[%emt 0:00:07]} O-O {[%emt 0:00:07]} 8. Qc2 {[%emt 0:00:11]} Re8+ {[%emt 0:00:05]} 9. Ne2 {[%emt 0:00:10]} h5 {[%emt 0:00:07]} 10. O-O {[%emt 0:01:16]} h4 {[%emt 0:00:05]} 11. h3 {[%emt 0:00:06]} Nd7 {[%emt 0:01:00]} 12. Be3 {[%emt 0:00:47]} Nf8 {[%emt 0:01:03]} 13. Rad1 {[%emt 0:00:22]} Bd7 {[%emt 0:02:21]} 14. Rfe1 {[%emt 0:02:28]} Rc8 {[%emt 0:00:22]} 15. c4 {[%emt 0:04:53]} Bb8 {[%emt 0:06:44]} 16. Kf1 {[%emt 0:02:47]} Qc7 {[%emt 0:16:04]} 17. Ng1 {[%emt 0:14:03]} Qh2 {[%emt 0:09:22]} 18. Be4 {[%emt 0:12:58]} Qh1 {[%emt 0:09:23]} 19. f4 {[%emt 0:09:17]} Re7 {[%emt 0:01:41]} 20. Bf3 {[%emt 0:38:40]} Qh2 {[%emt 0:08:38]} 21. Bf2 {[%emt 0:00:06]} Rxe1+ {[%emt 0:00:17]} 22. Rxe1 Qxf4 23. Qb3 {[%emt 0:02:43]} b6 {[%emt 0:07:43]} 24. Ne2 {[%emt 0:00:52]} Qh2 {[%emt 0:01:52]} 25. Bxh4 {[%emt 0:01:35]} Bxh3 {[%emt 0:00:24]} 26. Bf2 {[%emt 0:02:00]} Bf5 {[%emt 0:01:23]} 27. d5 {[%emt 0:00:41]} cxd5 {[%emt 0:00:15]} 28. cxd5 {[%emt 0:00:01]} Nd7 {[%emt 0:03:01]} 29. Bg1 {[%emt 0:03:07]} Qh1 {[%emt 0:01:49]} 30. d6 {[%emt 0:04:01]} Bxd6 {[%emt 0:06:03]} 31. Qd5 {[%emt 0:00:35]} Be5 {[%emt 0:00:38]} 32. Rc1 {[%emt 0:01:28]} Re8 {[%emt 0:03:46]} 33. Ng3 0-1

[Event "25th Magistral Barcelona 2020"]
[Site "Barcelona"]
[Date "2020.12.07"]
[Round "6.3"]
[White "Batsiashvili, Nino"]
[Black "Narciso Dublan, Marc"]
[Result "1/2-1/2"]
[ECO "A21"]
[WhiteElo "2460"]
[BlackElo "2492"]
[Annotator "RC"]
[PlyCount "116"]
[EventDate "2020.12.02"]
[EventType "tourn"]
[EventCountry "ESP"]
[SourceTitle "playchess.com"]
[Source "ChessBase"]
[SourceQuality "1"]
[TimeControl "5400+30"]

1. c4 {[%emt 0:00:00]} e5 {[%emt 0:00:31]} 2. Nc3 {[%emt 0:00:00]} d6 {[%emt 0:00:18]} 3. d4 {[%emt 0:01:44]} exd4 {[%emt 0:00:20]} 4. Qxd4 {[%emt 0:00:02]} Nc6 {[%emt 0:00:13]} 5. Qd2 {[%emt 0:00:04]} Nf6 {[%emt 0:00:22]} 6. b3 {[%emt 0:01:59]} a5 {[%emt 0:00:11]} 7. Bb2 {[%emt 0:00:51]} a4 {[%emt 0:00:13]} 8. Rd1 {[%emt 0:01:11]} axb3 {[%emt 0:00:25]} 9. axb3 {[%emt 0:00:01]} g6 {[%emt 0:00:20]} 10. Nf3 {[%emt 0:02:28]} Bg7 {[%emt 0:00:24]} 11. e3 {[%emt 0:01:07]} O-O {[%emt 0:00:38]} 12. Be2 {[%emt 0:00:28]} Nd7 {[%emt 0:11:06]} 13. Na4 {[%emt 0:07:16]} Nc5 {[%emt 0:05:51]} 14. Bxg7 {[%emt 0:02:08]} Kxg7 {[%emt 0:00:06]} 15. Nxc5 {[%emt 0:08:15]} dxc5 {[%emt 0:00:06]} 16. Qb2+ {[%emt 0:01:08]} Qf6 {[%emt 0:00:07]} 17. Qxf6+ {[%emt 0:00:06]} Kxf6 {[%emt 0:00:06]} 18. Nd2 {[%emt 0:00:08]} Bf5 {[%emt 0:14:28]} 19. O-O {[%emt 0:09:18]} Bc2 {[%emt 0:06:23]} 20. Rc1 {[%emt 0:04:02]} Nb4 {[%emt 0:00:47]} 21. Bf3 {[%emt 0:00:55]} c6 {[%emt 0:02:15]} 22. Ne4+ {[%emt 0:05:13]} Bxe4 {[%emt 0:00:27]} 23. Bxe4 {[%emt 0:00:00]} Ra3 {[%emt 0:03:19]} 24. Rb1 {[%emt 0:02:29]} Rd8 {[%emt 0:00:52]} 25. g4 {[%emt 0:00:53]} Rd2 {[%emt 0:02:50]} 26. h4 {[%emt 0:10:55]} Na2 {[%emt 0:11:27]} 27. Bf3 {[%emt 0:00:40]} Nc3 {[%emt 0:00:50]} 28. Ra1 {[%emt 0:00:29]} Rxa1 {[%emt 0:02:20]} 29. Rxa1 {[%emt 0:00:05]} Rb2 {[%emt 0:00:04]} 30. g5+ {[%emt 0:02:51]} Ke6 {[%emt 0:07:32]} 31. Ra8 {[%emt 0:00:57]} Rxb3 {[%emt 0:02:02]} 32. h5 {[%emt 0:06:05]} Rb4 {[%emt 0:17:55]} 33. Bg4+ {[%emt 0:11:46]} Ke7 {[%emt 0:00:46]} 34. Rb8 {[%emt 0:00:11]} Ne4 {[%emt 0:03:51]} 35. f4 {[%emt 0:02:26]} gxh5 {[%emt 0:00:21]} 36. Bxh5 {[%emt 0:01:24]} Nd6 {[%emt 0:00:39]} 37. Rh8 {[%emt 0:02:24]} b5 {[%emt 0:03:02]} 38. Rxh7 {[%emt 0:04:13]} bxc4 {[%emt 0:00:42]} 39. Kf1 {[%emt 0:00:06]} Rb2 {[%emt 0:03:51]} 40. Ke1 {[%emt 0:04:12]} c3 {[%emt 0:00:24]} 41. Kd1 {[%emt 0:00:32]} Ke6 {[%emt 0:01:24]} 42. Rh6+ {[%emt 0:00:31]} Ke7 {[%emt 0:00:05]} 43. Rxd6 {[%emt 0:00:12]} Kxd6 {[%emt 0:00:03]} 44. Bxf7 {[%emt 0:00:06]} Rd2+ {[%emt 0:00:27]} 45. Kc1 {[%emt 0:00:03]} Ke7 {[%emt 0:01:05]} 46. Bc4 {[%emt 0:00:13]} Rf2 {[%emt 0:00:22]} 47. Bd3 {[%emt 0:01:19]} Rf3 {[%emt 0:01:06]} 48. f5 {[%emt 0:00:28]} Rxe3 {[%emt 0:00:15]} 49. Kc2 {[%emt 0:01:35]} Rg3 {[%emt 0:00:36]} 50. g6 {[%emt 0:00:36]} c4 {[%emt 0:00:36]} 51. Bxc4 {[%emt 0:00:12]} Kf6 {[%emt 0:00:12]} 52. Bd3 {[%emt 0:00:05]} Rg4 {[%emt 0:00:52]} 53. Kxc3 {[%emt 0:00:03]} Rf4 {[%emt 0:00:29]} 54. Bc2 {[%emt 0:00:22]} Rg4 {[%emt 0:00:22]} 55. Bd3 {[%emt 0:00:05]} Ke5 {[%emt 0:00:34]} 56. Bc2 {[%emt 0:00:19]} c5 {[%emt 0:00:29]} 57. Bd3 {[%emt 0:00:19]} Kf6 {[%emt 0:00:14]} 58. Bc2 {[%emt 0:00:06]} Rf4 {[%emt 0:00:46]} 1/2-1/2

[Event "25th Magistral Barcelona 2020"]
[Site "Barcelona"]
[Date "2020.12.08"]
[Round "7.1"]
[White "Ayats Llobera, Gerard"]
[Black "Munoz, Miguel"]
[Result "0-1"]
[ECO "A04"]
[WhiteElo "2400"]
[BlackElo "2442"]
[Annotator "ChessBase"]
[PlyCount "108"]
[EventDate "2020.12.02"]
[EventType "tourn"]
[EventCountry "ESP"]
[SourceTitle "playchess.com"]
[Source "ChessBase"]
[SourceQuality "1"]
[TimeControl "5400+30"]

1. Nf3 c5 2. b3 d6 3. d4 cxd4 4. Nxd4 e5 5. Nf3 e4 6. Nd4 d5 7. e3 Nc6 8. Bb2 Nf6 9. Nxc6 bxc6 10. c4 Be6 11. cxd5 Bb4+ 12. Nd2 Bxd5 13. Qc2 Qa5 14. a3 Bxd2+ 15. Qxd2 Qxd2+ 16. Kxd2 Bxb3 17. Bxf6 gxf6 18. Rb1 Bd5 19. Rb7 O-O 20. Ba6 Rfd8 21. Kc2 Be6 22. Rb2 Rd5 23. Be2 Ra5 24. Ra1 Rd8 25. Kc1 Kf8 26. Rc2 Bd5 27. Rc3 Rb8 28. Rb1 Rb6 29. Kc2 Ke7 30. Rd1 f5 31. h4 Kd6 32. Rb1 h6 33. Rb2 Be6 34. Rb1 Bd5 35. Rb2 c5 36. Rb1 Rxb1 37. Kxb1 c4 38. Kc2 Kc5 39. g3 Ra6 40. Bf1 Rg6 41. Be2 a5 42. Bf1 f4 43. exf4 Kd4 44. Be2 f5 45. Bf1 Rb6 46. Re3 Bc6 47. Bh3 c3 48. Bxf5 Rb2+ 49. Kc1 Ra2 50. Kb1 Rxf2 51. Re1 e3 52. h5 e2 53. Bh3 Be4+ 54. Kc1 Ke3 0-1

[Event "25th Magistral Barcelona 2020"]
[Site "Barcelona"]
[Date "2020.12.08"]
[Round "7.2"]
[White "Milliet, Sophie"]
[Black "Alonso Rosell, Alvar"]
[Result "1/2-1/2"]
[ECO "C70"]
[WhiteElo "2401"]
[BlackElo "2552"]
[Annotator "ChessBase"]
[PlyCount "111"]
[EventDate "2020.12.02"]
[EventType "tourn"]
[EventCountry "ESP"]
[SourceTitle "playchess.com"]
[Source "ChessBase"]
[SourceQuality "1"]
[TimeControl "5400+30"]

1. e4 {[%emt 0:00:00]} e5 {[%emt 0:06:04]} 2. Nf3 {[%emt 0:00:00]} Nc6 {[%emt 0:00:04]} 3. Bb5 {[%emt 0:00:00]} a6 {[%emt 0:00:04]} 4. Ba4 {[%emt 0:00:00]} g6 {[%emt 0:00:06]} 5. c3 {[%emt 0:01:05]} Bg7 {[%emt 0:03:30]} 6. d4 {[%emt 0:00:24]} b5 {[%emt 0:00:21]} 7. Bc2 {[%emt 0:01:46]} exd4 {[%emt 0:00:06]} 8. cxd4 {[%emt 0:00:03]} d6 {[%emt 0:00:03]} 9. h3 {[%emt 0:00:18]} Nf6 {[%emt 0:00:17]} 10. O-O {[%emt 0:08:26]} O-O {[%emt 0:00:45]} 11. Bg5 {[%emt 0:06:51]} h6 {[%emt 0:02:48]} 12. Bh4 {[%emt 0:00:48]} Re8 {[%emt 0:30:51]} 13. Nbd2 {[%emt 0:03:08]} Bb7 {[%emt 0:19:05]} 14. Re1 {[%emt 0:10:57]} Qd7 {[%emt 0:08:54]} 15. Nb3 {[%emt 0:11:57]} Nb4 {[%emt 0:09:51]} 16. Bxf6 {[%emt 0:03:28]} Bxf6 {[%emt 0:00:03]} 17. Na5 {[%emt 0:00:13]} Rab8 {[%emt 0:06:43]} 18. Nxb7 {[%emt 0:00:29]} Rxb7 {[%emt 0:03:49]} 19. Bb3 {[%emt 0:15:58]} c5 {[%emt 0:00:41]} 20. dxc5 {[%emt 0:03:21]} dxc5 {[%emt 0:00:02]} 21. Qxd7 {[%emt 0:00:39]} Rxd7 {[%emt 0:00:00]} 22. e5 {[%emt 0:15:33]} Nd3 23. exf6 {[%emt 0:05:48]} Nxe1 {[%emt 0:00:12]} 24. Rxe1 {[%emt 0:00:15]} Rxe1+ {[%emt 0:00:23]} 25. Nxe1 {[%emt 0:00:01]} c4 {[%emt 0:04:07]} 26. Bc2 {[%emt 0:00:01]} Rd2 {[%emt 0:00:05]} 27. b3 {[%emt 0:04:21]} c3 {[%emt 0:01:13]} 28. a4 {[%emt 0:00:25]} b4 {[%emt 0:00:30]} 29. g4 {[%emt 0:00:49]} Kf8 {[%emt 0:01:36]} 30. Kg2 {[%emt 0:00:10]} Re2 {[%emt 0:00:31]} 31. Kf1 {[%emt 0:00:05]} Rd2 {[%emt 0:00:04]} 32. Kg2 {[%emt 0:00:06]} Rd6 {[%emt 0:02:07]} 33. a5 {[%emt 0:06:04]} Rd2 {[%emt 0:00:21]} 34. Kf3 {[%emt 0:00:37]} Ke8 {[%emt 0:00:21]} 35. Ke3 {[%emt 0:01:00]} Kd7 {[%emt 0:00:06]} 36. h4 {[%emt 0:01:11]} Kd6 {[%emt 0:01:37]} 37. g5 {[%emt 0:00:35]} hxg5 {[%emt 0:00:01]} 38. hxg5 {[%emt 0:00:03]} Rd5 {[%emt 0:00:15]} 39. f4 {[%emt 0:01:42]} Rxa5 {[%emt 0:00:01]} 40. Nd3 {[%emt 0:00:07]} Rb5 {[%emt 0:00:18]} 41. Ne5 {[%emt 0:00:57]} Rb7 {[%emt 0:00:06]} 42. Kd4 {[%emt 0:00:25]} a5 {[%emt 0:00:15]} 43. Nc4+ {[%emt 0:00:10]} Ke6 {[%emt 0:00:10]} 44. Nxa5 {[%emt 0:00:45]} Rd7+ {[%emt 0:00:12]} 45. Ke3 {[%emt 0:00:34]} Rd2 {[%emt 0:00:04]} 46. Nc6 {[%emt 0:00:06]} Kd6 {[%emt 0:01:09]} 47. Nxb4 {[%emt 0:00:06]} Kc5 {[%emt 0:00:04]} 48. Nd3+ {[%emt 0:00:06]} Kd5 {[%emt 0:00:06]} 49. Ne1 {[%emt 0:00:44]} Rh2 {[%emt 0:00:11]} 50. Be4+ {[%emt 0:00:50]} Kc5 {[%emt 0:00:34]} 51. Nc2 {[%emt 0:00:35]} Rh3+ {[%emt 0:00:12]} 52. Bf3 {[%emt 0:00:25]} Rh2 53. b4+ {[%emt 0:01:29]} Kc4 {[%emt 0:00:34]} 54. Be2+ {[%emt 0:00:25]} Kb3 {[%emt 0:00:05]} 55. Nd4+ {[%emt 0:00:29]} Kxb4 {[%emt 0:00:16]} 56. Bd3 {[%emt 0:00:39]} 1/2-1/2

[Event "25th Magistral Barcelona 2020"]
[Site "Barcelona"]
[Date "2020.12.09"]
[Round "8.1"]
[White "Munoz, Miguel"]
[Black "Lopez Martinez, Josep Manuel"]
[Result "1/2-1/2"]
[ECO "B40"]
[WhiteElo "2442"]
[BlackElo "2542"]
[Annotator "ChessBase"]
[PlyCount "63"]
[EventDate "2020.12.02"]
[EventType "tourn"]
[EventCountry "ESP"]
[SourceTitle "playchess.com"]
[Source "ChessBase"]
[SourceQuality "1"]
[TimeControl "5400+30"]

1. e4 c5 2. Nf3 e6 3. c4 Nc6 4. d4 cxd4 5. Nxd4 Nf6 6. Nc3 Qc7 7. Be2 Be7 8. Be3 O-O 9. O-O d6 10. Rc1 Nxd4 11. Qxd4 Bd7 12. Rfd1 Rfd8 13. f3 Be8 14. Kh1 a6 15. g4 Nd7 16. g5 Qa5 17. Qd2 Bf8 18. a3 Rac8 19. f4 Qc7 20. Bd3 Nc5 21. Bc2 Nd7 22. Bd3 Qb8 23. b4 Rc7 24. Ne2 Rdc8 25. h4 b6 26. Kh2 Qb7 27. Rc2 b5 28. cxb5 axb5 29. Rdc1 Rxc2 30. Rxc2 Nb6 31. Rxc8 Nxc8 32. Nc3 1/2-1/2

[Event "25th Magistral Barcelona 2020"]
[Site "Barcelona"]
[Date "2020.12.09"]
[Round "8.5"]
[White "Ayats Llobera, Gerard"]
[Black "Milliet, Sophie"]
[Result "1/2-1/2"]
[ECO "C45"]
[WhiteElo "2400"]
[BlackElo "2401"]
[Annotator "ChessBase"]
[PlyCount "59"]
[EventDate "2020.12.02"]
[EventType "tourn"]
[EventCountry "ESP"]
[SourceTitle "playchess.com"]
[Source "ChessBase"]
[SourceQuality "1"]
[TimeControl "5400+30"]

1. e4 {[%emt 0:00:00]} e5 {[%emt 0:00:00]} 2. Nf3 {[%emt 0:00:00]} Nc6 {[%emt 0:00:00]} 3. d4 {[%emt 0:00:00]} exd4 {[%emt 0:00:00]} 4. Nxd4 {[%emt 0:00:00]} Nf6 {[%emt 0:00:08]} 5. Nxc6 {[%emt 0:00:00]} bxc6 {[%emt 0:00:07]} 6. e5 {[%emt 0:00:00]} Qe7 {[%emt 0:00:18]} 7. Qe2 {[%emt 0:00:11]} Nd5 {[%emt 0:00:07]} 8. c4 {[%emt 0:00:06]} Ba6 {[%emt 0:00:21]} 9. b3 {[%emt 0:00:20]} g6 {[%emt 0:01:37]} 10. g3 {[%emt 0:00:15]} Bg7 {[%emt 0:00:49]} 11. Bb2 {[%emt 0:00:10]} O-O {[%emt 0:01:07]} 12. Bg2 {[%emt 0:00:14]} Rae8 {[%emt 0:17:27]} 13. O-O {[%emt 0:00:25]} Bxe5 {[%emt 0:04:19]} 14. Qxe5 {[%emt 0:00:11]} Qxe5 {[%emt 0:00:07]} 15. Bxe5 {[%emt 0:00:04]} Rxe5 {[%emt 0:00:05]} 16. cxd5 {[%emt 0:00:03]} Bxf1 {[%emt 0:00:07]} 17. Kxf1 {[%emt 0:00:02]} cxd5 {[%emt 0:00:27]} 18. Nc3 {[%emt 0:00:03]} c6 {[%emt 0:00:34]} 19. Rd1 {[%emt 0:00:05]} a5 {[%emt 0:04:29]} 20. Na4 {[%emt 0:05:08]} Rb8 {[%emt 0:01:32]} 21. Nc5 {[%emt 0:01:20]} Re7 {[%emt 0:00:24]} 22. Rd4 {[%emt 0:02:15]} Rb5 {[%emt 0:06:05]} 23. Nd3 {[%emt 0:00:24]} Kf8 {[%emt 0:11:41]} 24. f3 {[%emt 0:04:43]} Re8 {[%emt 0:02:45]} 25. Kf2 {[%emt 0:02:16]} Ke7 {[%emt 0:05:12]} 26. Ke3 {[%emt 0:00:43]} Kd6+ {[%emt 0:03:04]} 27. Kd2 {[%emt 0:00:08]} c5 {[%emt 0:04:20]} 28. Rf4 {[%emt 0:03:00]} f5 {[%emt 0:03:51]} 29. Bf1 {[%emt 0:31:08]} Rc8 {[%emt 0:02:16]} 30. Kc3 {[%emt 0:17:43]} 1/2-1/2